bitfinex/quotes_SOLUSD_20250609
["timestamp","ask_amount","ask_price","bid_price","bid_amount"]
[1749496189218,26.0006636,156.48,156.45,129.0]
[1749496190695,19.61001178,156.48,156.45,129.0]
[1749496192813,6.39025915,156.49,156.45,148.61001178]
[1749496193021,26.00027093,156.49,156.45,129.0]
[1749496195806,19.61001178,156.48,156.45,129.0]
[1749496196009,26.00027093,156.49,156.45,129.0]
[1749496201214,12.54971755,156.48,156.45,129.0]
[1749496202402,18.94037884,156.48,156.45,129.0]
[1749496202616,12.54971755,156.47,156.45,129.0]
[1749496203730,12.54971755,156.46,156.45,129.0]
[1749496204111,12.54971755,156.46,156.45,89.9]
[1749496205327,19.61323559,156.46,156.45,89.9]
[1749496206211,26.00464553,156.46,156.45,89.9]
[1749496206421,30.76961401,156.46,156.45,89.9]
[1749496206802,11.15637842,156.46,156.45,89.9]
[1749496207003,4.76496848,156.46,156.45,147.60964886]
[1749496209410,19.61323559,156.48,156.46,18.64964886]
[1749496209624,4.77338505,156.47,156.46,18.64964886]
[1749496210129,4.77338505,156.47,156.46,108.54964886]
[1749496212635,45.61323559,156.52,156.46,134.55429439]
[1749496212851,11.15726393,156.51,156.48,18.64964886]
[1749496213015,4.76786719,156.5,156.48,57.70964886]
[1749496213359,4.76786719,156.49,156.48,57.70964886]
[1749496214417,19.61323559,156.5,156.48,57.70964886]
[1749496214941,4.76719105,156.49,156.48,57.70964886]
[1749496215612,24.38042664,156.49,156.48,39.06]
[1749496215814,6.39059304,156.48,156.46,139.12]
[1749496216013,24.38042664,156.47,156.46,49.22]
[1749496216436,24.38042664,156.47,156.46,39.1]
[1749496216944,4.76719105,156.47,156.46,39.1]
[1749496217113,4.76719105,156.47,156.46,57.74964886]
[1749496217313,19.61323559,156.49,156.47,18.64964886]
[1749496218429,26.00319511,156.5,156.47,18.64964886]
[1749496218627,4.76481814,156.49,156.47,18.64964886]
[1749496218938,26.00319511,156.5,156.47,108.54964886]
[1749496219142,4.76455468,156.49,156.47,108.54964886]
[1749496219438,26.00319511,156.5,156.47,108.54964886]
[1749496219646,4.76465033,156.49,156.47,108.54964886]
[1749496219828,26.00319511,156.5,156.47,108.54964886]
[1749496220126,4.76438625,156.49,156.47,108.54964886]
[1749496220315,26.00319511,156.5,156.47,108.54964886]
[1749496220514,4.76417632,156.49,156.48,39.08]
[1749496220715,19.61323559,156.5,156.48,39.08]
[1749496221814,19.61323559,156.49,156.48,39.08]
[1749496222214,24.37576055,156.49,156.48,39.08]
[1749496222415,30.76594782,156.49,156.48,39.08]
[1749496223647,11.15271223,156.49,156.48,39.08]
[1749496223840,30.76594782,156.49,156.48,39.08]
[1749496224317,30.76594782,156.49,156.47,89.9]
[1749496224518,4.76252756,156.48,156.47,89.9]
[1749496224736,11.1531206,156.48,156.47,89.9]
[1749496225135,30.76635619,156.48,156.47,89.9]
[1749496227721,11.1531206,156.48,156.47,89.9]
[1749496229644,4.76252756,156.48,156.47,89.9]
[1749496231050,11.1531206,156.48,156.47,89.9]
[1749496231850,4.76252756,156.48,156.47,89.9]
[1749496232645,11.1531206,156.48,156.47,89.9]
[1749496233125,6.39059304,156.48,156.47,89.9]
[1749496233641,26.00382863,156.48,156.47,89.9]
[1749496235072,30.76609752,156.48,156.47,89.9]
[1749496236230,11.15286193,156.48,156.47,89.9]
[1749496244561,4.76226889,156.48,156.47,89.9]
[1749496246607,18.93743492,156.51,156.47,108.54964886]
[1749496246804,17.31890378,156.5,156.48,39.06]
[1749496246994,4.77117788,156.49,156.48,39.06]
[1749496247866,23.70908845,156.49,156.48,39.06]
[1749496248467,23.70908845,156.49,156.48,128.96]
[1749496250364,11.16136255,156.49,156.48,128.96]
[1749496250540,4.77117788,156.49,156.48,128.96]
[1749496252266,4.77117788,156.49,156.48,147.60964886]
[1749496258553,12.5477259,156.5,156.49,18.64964886]
[1749496258758,17.32107424,156.5,156.49,18.64964886]
[1749496259650,23.71085059,156.5,156.49,18.64964886]
[1749496260183,17.32107424,156.5,156.49,18.64964886]
[1749496260381,17.32107424,156.5,156.49,108.54964886]
[1749496261161,23.71085059,156.5,156.49,108.54964886]
[1749496263187,4.77334834,156.5,156.49,108.54964886]
[1749496263354,17.32107424,156.5,156.49,108.54964886]
[1749496263550,23.71085059,156.5,156.49,89.9]
[1749496265466,17.32107424,156.5,156.49,89.9]
[1749496265854,23.71085059,156.5,156.49,89.9]
[1749496266052,4.77334834,156.5,156.49,108.54964886]
[1749496267347,18.93598395,156.54,156.5,18.64964886]
[1749496267553,44.93563954,156.55,156.52,18.64964886]
[1749496268656,12.5477259,156.54,156.52,18.64964886]
[1749496269257,4.77340232,156.53,156.52,18.64964886]
[1749496270278,23.70967993,156.53,156.52,18.64964886]
[1749496272251,23.70967993,156.53,156.52,108.54964886]
[1749496272450,17.32112822,156.53,156.52,108.54964886]
[1749496276783,23.70967993,156.53,156.52,108.54964886]
[1749496280684,23.70967993,156.53,156.52,89.9]
[1749496280888,18.93627761,156.53,156.52,89.9]
[1749496281291,23.7020135,156.53,156.52,89.9]
[1749496284089,23.7020135,156.53,156.5,18.64964886]
[1749496284294,12.5477259,156.51,156.5,18.64964886]
[1749496286006,18.93709399,156.51,156.5,18.64964886]
[1749496287786,17.31541793,156.51,156.5,18.64964886]
[1749496289913,17.31541793,156.51,156.5,108.54964886]
[1749496291606,23.70478602,156.51,156.5,108.54964886]
[1749496292394,17.31541793,156.51,156.5,108.54964886]
[1749496294207,23.70478602,156.51,156.5,89.9]
[1749496295814,23.70478602,156.51,156.47,139.04]
[1749496296108,12.5477259,156.49,156.47,139.04]
[1749496297818,4.77084969,156.48,156.47,157.68964886]
[1749496298003,18.93794533,156.49,156.47,157.68964886]
[1749496298311,6.39021943,156.49,156.47,157.68964886]
[1749496299923,12.5477259,156.51,156.48,18.64964886]
[1749496300223,4.7707705,156.5,156.49,57.68964886]
[1749496300508,12.5477259,156.51,156.49,57.68964886]
[1749496301488,12.5477259,156.51,156.5,18.64964886]
[1749496301694,4.77097747,156.51,156.5,108.54964886]
[1749496303816,17.31870337,156.51,156.5,108.54964886]
[1749496308306,23.70807146,156.51,156.5,89.9]
[1749496313713,23.70807146,156.51,156.48,39.04]
[1749496314022,12.5477259,156.49,156.48,39.04]
[1749496314324,17.31870337,156.49,156.48,39.04]
[1749496322215,4.77097747,156.49,156.48,39.04]
[1749496322913,11.16116214,156.49,156.47,108.54964886]
[1749496323126,4.76661156,156.48,156.47,147.58964886]
[1749496328233,4.76661156,156.48,156.47,128.94]
[1749496328234,23.7049305,156.48,156.47,128.94]
[1749496330216,17.31433746,156.48,156.47,128.94]
[1749496330415,17.31433746,156.48,156.47,89.9]
[1749496331321,4.76661156,156.48,156.46,128.94]
[1749496331618,18.93802286,156.49,156.46,128.94]
[1749496331820,4.76687624,156.48,156.46,128.94]
[1749496332115,18.93802286,156.49,156.46,128.94]
[1749496332308,4.76699772,156.48,156.46,128.94]
[1749496332510,18.93802286,156.49,156.46,128.94]
[1749496332711,4.76708951,156.48,156.46,128.94]
[1749496332939,18.93802286,156.49,156.46,128.94]
[1749496333141,4.76754981,156.48,156.46,128.94]
[1749496333325,18.93802286,156.49,156.46,128.94]
[1749496333516,4.76760029,156.48,156.46,128.94]
[1749496333718,18.93802286,156.49,156.46,128.94]
[1749496334023,4.76758145,156.48,156.46,128.94]
[1749496334223,18.93802286,156.49,156.46,128.94]
[1749496334445,4.7695869,156.48,156.46,128.94]
[1749496334726,18.93802286,156.49,156.46,128.94]
[1749496334933,4.7697663,156.48,156.46,128.94]
[1749496335230,18.93802286,156.49,156.46,128.94]
[1749496335531,4.77005097,156.48,156.46,128.94]
[1749496335725,18.93802286,156.49,156.46,128.94]
[1749496335934,17.31777813,156.48,156.46,128.94]
[1749496336231,18.93802286,156.49,156.46,128.94]
[1749496336434,4.76969417,156.48,156.46,128.94]
[1749496336628,18.93802286,156.49,156.46,128.94]
[1749496336821,4.7694959,156.48,156.46,128.94]
[1749496337025,18.93802286,156.49,156.46,128.94]
[1749496337339,4.76958395,156.48,156.46,128.94]
[1749496337532,18.93802286,156.49,156.46,128.94]
[1749496337736,4.76928128,156.48,156.46,128.94]
[1749496337955,18.93802286,156.49,156.46,128.94]
[1749496338120,4.76876617,156.48,156.46,128.94]
[1749496338324,18.93802286,156.49,156.46,128.94]
[1749496338614,4.76750767,156.48,156.46,128.94]
[1749496338820,18.93802286,156.49,156.46,128.94]
[1749496339039,4.76780733,156.48,156.46,128.94]
[1749496339241,18.93802286,156.49,156.46,128.94]
[1749496339474,4.7677736,156.48,156.46,128.94]
[1749496339624,18.93802286,156.49,156.46,128.94]
[1749496339814,4.7677736,156.48,156.46,128.94]
[1749496340014,18.93802286,156.49,156.46,128.94]
[1749496340315,4.76776121,156.48,156.46,128.94]
[1749496340634,12.5477259,156.48,156.46,128.94]
[1749496341033,18.93802286,156.49,156.46,128.94]
[1749496341227,4.76764948,156.48,156.46,128.94]
[1749496341432,18.93802286,156.49,156.46,128.94]
[1749496341633,4.7680936,156.48,156.46,128.94]
[1749496341830,18.93802286,156.49,156.46,128.94]
[1749496342034,4.76809338,156.48,156.46,128.94]
[1749496342330,18.93802286,156.49,156.46,128.94]
[1749496342539,4.76817788,156.48,156.46,128.94]
[1749496342730,18.93802286,156.49,156.46,128.94]
[1749496343028,4.76923357,156.48,156.46,128.94]
[1749496343214,18.93802286,156.49,156.46,128.94]
[1749496343417,4.7694924,156.48,156.46,128.94]
[1749496343649,18.93802286,156.49,156.46,128.94]
[1749496343829,4.76957238,156.48,156.46,128.94]
[1749496344038,18.93802286,156.49,156.46,89.9]
[1749496344225,4.77002861,156.48,156.46,128.94]
[1749496344430,18.93802286,156.49,156.46,128.94]
[1749496344726,4.77009529,156.48,156.46,128.94]
[1749496345031,18.93802286,156.49,156.46,128.94]
[1749496345241,4.77014674,156.48,156.46,128.94]
[1749496345442,18.93802286,156.49,156.46,128.94]
[1749496345625,4.77015949,156.48,156.46,128.94]
[1749496345827,18.93802286,156.49,156.46,128.94]
[1749496346026,4.77014715,156.48,156.46,128.94]
[1749496346227,18.93802286,156.49,156.46,128.94]
[1749496346458,4.76999371,156.48,156.46,128.94]
[1749496346631,18.93802286,156.49,156.46,128.94]
[1749496346831,4.76996641,156.48,156.46,128.94]
[1749496347029,18.93802286,156.49,156.46,128.94]
[1749496347247,4.76996796,156.48,156.46,128.94]
[1749496347459,18.93802286,156.49,156.46,128.94]
[1749496347762,4.77056295,156.48,156.46,128.94]
[1749496347939,18.93802286,156.49,156.46,128.94]
[1749496348139,4.77101654,156.48,156.46,128.94]
[1749496348342,18.93802286,156.49,156.46,128.94]
[1749496348538,4.77176642,156.48,156.46,128.94]
[1749496348724,18.93802286,156.49,156.46,128.94]
[1749496348936,4.77182882,156.48,156.46,128.94]
[1749496349168,18.93802286,156.49,156.46,128.94]
[1749496349326,4.77239503,156.48,156.46,128.94]
[1749496349526,18.93802286,156.49,156.46,128.94]
[1749496350230,4.77239447,156.48,156.46,128.94]
[1749496350430,18.93802286,156.49,156.46,128.94]
[1749496350642,4.77300231,156.48,156.46,128.94]
[1749496350862,18.93802286,156.49,156.46,128.94]
[1749496351048,4.77281978,156.48,156.46,128.94]
[1749496351225,18.93802286,156.49,156.46,128.94]
[1749496351425,4.77297058,156.48,156.46,128.94]
[1749496351622,18.93802286,156.49,156.46,128.94]
[1749496351828,4.77301795,156.48,156.46,128.94]
[1749496352128,18.93802286,156.49,156.46,128.94]
[1749496352328,4.77291561,156.48,156.46,128.94]
[1749496352558,4.77364986,156.47,156.46,147.58964886]
[1749496352755,18.93802286,156.49,156.46,147.58964886]
[1749496352950,4.77371895,156.48,156.46,147.58964886]
[1749496353139,18.93802286,156.49,156.46,147.58964886]
[1749496353338,4.77378138,156.48,156.46,147.58964886]
[1749496353548,4.77378138,156.47,156.46,147.58964886]
[1749496355235,12.5477259,156.49,156.46,147.58964886]
[1749496355236,6.3903565,156.49,156.46,147.58964886]
[1749496355437,4.7751755,156.48,156.46,147.58964886]
[1749496355764,18.9380824,156.49,156.46,147.58964886]
[1749496355940,4.77520935,156.48,156.46,147.58964886]
[1749496356139,18.9380824,156.49,156.46,147.58964886]
[1749496356466,4.77582768,156.48,156.46,147.58964886]
[1749496356664,12.5477259,156.47,156.46,39.04]
[1749496356969,17.32316079,156.47,156.44,99.98]
[1749496357130,17.32316079,156.46,156.44,128.94]
[1749496357457,17.32316079,156.45,156.44,147.58964886]
[1749496357960,17.32316079,156.45,156.44,89.9]
[1749496358362,23.71497926,156.45,156.44,89.9]
[1749496361087,23.71497926,156.45,156.42,128.94]
[1749496361263,17.32316079,156.44,156.42,128.94]
[1749496361461,12.5477259,156.44,156.42,128.94]
[1749496362084,12.5477259,156.44,156.42,89.9]
[1749496362382,12.5477259,156.46,156.44,18.64964886]
[1749496362583,4.7652747,156.45,156.44,18.64964886]
[1749496362966,18.93908613,156.47,156.44,18.64964886]
[1749496363167,4.76556359,156.46,156.44,18.64964886]
[1749496363471,18.93908613,156.47,156.44,18.64964886]
[1749496363679,4.7651721,156.46,156.44,18.64964886]
[1749496363880,18.93908613,156.47,156.44,18.64964886]
[1749496364082,4.76455576,156.46,156.44,18.64964886]
[1749496364281,18.93908613,156.47,156.44,18.64964886]
[1749496364480,4.76386595,156.46,156.44,18.64964886]
[1749496364677,18.93908613,156.47,156.44,18.64964886]
[1749496364877,4.76378588,156.46,156.44,18.64964886]
[1749496365063,18.93908613,156.47,156.44,18.64964886]
[1749496365263,4.76374449,156.46,156.44,18.64964886]
[1749496365460,18.93908613,156.47,156.44,18.64964886]
[1749496365665,4.76396382,156.46,156.44,18.64964886]
[1749496365865,18.93908613,156.47,156.44,18.64964886]
[1749496366061,4.76353941,156.46,156.44,18.64964886]
[1749496366292,18.93908613,156.47,156.44,18.64964886]
[1749496366494,4.76324098,156.46,156.44,18.64964886]
[1749496366790,18.93908613,156.47,156.44,18.64964886]
[1749496367099,4.76361233,156.46,156.44,108.54964886]
[1749496367394,18.93908613,156.47,156.44,108.54964886]
[1749496367692,4.76367419,156.46,156.44,108.54964886]
[1749496367898,12.5477259,156.47,156.44,108.54964886]
[1749496368099,4.76367764,156.46,156.44,108.54964886]
[1749496368301,18.93849682,156.48,156.44,108.54964886]
[1749496368596,4.76365613,156.47,156.44,108.54964886]
[1749496368798,4.76365613,156.46,156.44,108.54964886]
[1749496369095,12.5477259,156.47,156.44,108.54964886]
[1749496369280,4.76356199,156.46,156.44,108.54964886]
[1749496369469,12.5477259,156.47,156.44,108.54964886]
[1749496369674,4.76325886,156.46,156.44,108.54964886]
[1749496369885,12.5477259,156.47,156.44,108.54964886]
[1749496370091,4.76341815,156.46,156.44,108.54964886]
[1749496370304,12.5477259,156.48,156.44,114.94184604]
[1749496370484,4.76358426,156.47,156.44,127.48957194]
[1749496370675,12.5477259,156.48,156.44,127.48957194]
[1749496370876,4.76369209,156.47,156.44,127.48957194]
[1749496371177,12.5477259,156.48,156.44,127.48957194]
[1749496371502,4.76380816,156.47,156.44,127.48957194]
[1749496371672,12.5477259,156.48,156.44,127.48957194]
[1749496371872,4.76363658,156.47,156.44,127.48957194]
[1749496372180,12.5477259,156.48,156.44,127.48957194]
[1749496372490,4.7637138,156.47,156.44,127.48957194]
[1749496372701,12.5477259,156.48,156.44,114.94184604]
[1749496372999,4.76375252,156.47,156.44,127.48957194]
[1749496373295,12.5477259,156.48,156.44,127.48957194]
[1749496373502,4.76371621,156.47,156.44,127.48957194]
[1749496373675,12.5477259,156.48,156.44,121.09737476]
[1749496373876,4.76371494,156.47,156.44,121.09737476]
[1749496374077,12.5477259,156.48,156.44,121.09737476]
[1749496374276,4.76374987,156.47,156.44,121.09737476]
[1749496374499,18.93844651,156.48,156.44,108.54964886]
[1749496374699,4.76390271,156.47,156.44,108.54964886]
[1749496374902,18.93844651,156.48,156.44,108.54964886]
[1749496375090,4.76390271,156.47,156.44,108.54964886]
[1749496375279,12.5477259,156.47,156.44,108.54964886]
[1749496375893,18.93880172,156.47,156.44,108.54964886]
[1749496378785,6.39074098,156.48,156.44,108.54964886]
[1749496378984,4.76418028,156.47,156.44,108.54964886]
[1749496379283,18.93846688,156.48,156.44,108.54964886]
[1749496379478,4.76436634,156.47,156.44,108.54964886]
[1749496379679,18.93846688,156.48,156.44,108.54964886]
[1749496379883,17.31180116,156.47,156.44,108.54964886]
[1749496380109,12.5477259,156.47,156.44,108.54964886]
[1749496381814,18.93895667,156.47,156.44,108.54964886]
[1749496385215,18.93895667,156.47,156.44,108.93334886]
[1749496393910,26.0,156.49,156.44,121.48107476]
[1749496394114,4.76507645,156.48,156.46,12.5477259]
[1749496394418,4.76561962,156.5,156.48,18.64964886]
[1749496394623,18.93710182,156.51,156.48,108.54964886]
[1749496394820,4.76531311,156.5,156.48,108.54964886]
[1749496395017,18.93710182,156.51,156.48,108.54964886]
[1749496395315,4.76540166,156.5,156.48,108.54964886]
[1749496395518,18.93710182,156.51,156.48,108.54964886]
[1749496395722,4.76470829,156.5,156.48,108.54964886]
[1749496395919,18.93710182,156.51,156.48,108.54964886]
[1749496396122,4.76470329,156.5,156.48,108.54964886]
[1749496396328,18.93710182,156.51,156.48,108.54964886]
[1749496396535,4.7638651,156.5,156.48,108.54964886]
[1749496396829,18.93710182,156.51,156.48,108.54964886]
[1749496397128,4.76396998,156.5,156.48,108.54964886]
[1749496397327,18.93710182,156.51,156.48,108.54964886]
[1749496397531,4.7630277,156.5,156.48,108.54964886]
[1749496397726,18.93710182,156.51,156.48,108.54964886]
[1749496398026,4.7629194,156.5,156.48,108.54964886]
[1749496398231,18.93710182,156.51,156.48,108.54964886]
[1749496399422,18.93668577,156.52,156.48,108.54964886]
[1749496399636,4.76143485,156.51,156.48,108.54964886]
[1749496399826,18.93668577,156.52,156.48,108.54964886]
[1749496400024,4.76100929,156.51,156.48,108.54964886]
[1749496400235,18.93668577,156.52,156.48,108.54964886]
[1749496400411,4.76032376,156.51,156.48,108.54964886]
[1749496400618,18.93668577,156.52,156.48,108.54964886]
[1749496400935,4.76043494,156.51,156.48,121.09737476]
[1749496401111,18.93668577,156.52,156.48,108.54964886]
[1749496401311,4.76061423,156.51,156.48,108.54964886]
[1749496401513,18.93668577,156.52,156.48,121.09737476]
[1749496401820,26.0,156.53,156.5,18.64964886]
[1749496402123,4.76018156,156.52,156.51,57.66964886]
[1749496404624,18.93639426,156.53,156.51,57.66964886]
[1749496405109,17.30790746,156.53,156.51,57.66964886]
[1749496405310,12.5477259,156.53,156.51,147.56964886]
[1749496406214,12.5477259,156.53,156.52,18.64964886]
[1749496406537,12.5477259,156.53,156.52,108.54964886]
[1749496406932,18.93601865,156.54,156.52,108.54964886]
[1749496407121,17.30314073,156.55,156.52,108.54964886]
[1749496407325,4.75582682,156.55,156.52,121.09737476]
[1749496407719,4.75496557,156.55,156.52,121.09737476]
[1749496408243,44.93514589,156.56,156.52,121.48107476]
[1749496408622,44.93514589,156.56,156.54,18.64964886]
[1749496408822,49.68855518,156.56,156.54,18.64964886]
[1749496409144,44.93514589,156.56,156.54,18.64964886]
[1749496409521,49.68855518,156.56,156.54,18.64964886]
[1749496409714,44.93514589,156.56,156.54,18.64964886]
[1749496410129,49.68855518,156.56,156.54,18.64964886]
[1749496410335,44.93514589,156.56,156.54,18.64964886]
[1749496410737,49.68855518,156.56,156.54,18.64964886]
[1749496410925,18.93546144,156.55,156.54,18.64964886]
[1749496411131,18.93546144,156.55,156.53,39.0]
[1749496411328,12.5477259,156.54,156.53,147.54964886]
[1749496412419,6.38773554,156.55,156.53,147.54964886]
[1749496412619,18.93546144,156.55,156.53,147.54964886]
[1749496415344,44.9352391,156.56,156.53,147.54964886]
[1749496415533,38.5477259,156.56,156.54,18.64964886]
[1749496415839,44.93505344,156.56,156.55,39.0]
[1749496420150,44.93505344,156.56,156.53,39.0]
[1749496420355,12.5477259,156.54,156.53,39.0]
[1749496420552,12.5477259,156.54,156.52,89.9]
[1749496420732,38.5477259,156.53,156.51,39.0]
[1749496420935,12.5477259,156.52,156.51,39.0]
[1749496421547,18.93668577,156.52,156.51,39.0]
[1749496422549,18.93668577,156.52,156.5,128.9]
[1749496422747,12.5477259,156.51,156.5,128.9]
[1749496423534,18.93709399,156.51,156.5,128.9]
[1749496423838,12.5477259,156.51,156.5,128.9]
[1749496424759,18.93709399,156.51,156.5,128.9]
[1749496426148,18.93709399,156.51,156.5,39.0]
[1749496426640,18.93709399,156.51,156.49,39.0]
[1749496426964,18.93709399,156.51,156.48,99.98]
[1749496426965,12.5477259,156.5,156.48,99.98]
[1749496427140,12.5477259,156.49,156.48,157.62964886]
[1749496427341,12.5477259,156.49,156.48,118.62964886]
[1749496427544,18.93791057,156.49,156.48,157.62964886]
[1749496428469,18.93791057,156.49,156.48,10.08]
[1749496428663,18.93791057,156.49,156.45,89.9]
[1749496428864,12.5477259,156.47,156.46,39.0]
[1749496429657,18.93872736,156.47,156.46,39.0]
[1749496430158,6.39100146,156.47,156.46,39.0]
[1749496431861,18.93841053,156.48,156.45,18.64964886]
[1749496432060,18.93841053,156.48,156.46,39.0]
[1749496432674,12.5477259,156.48,156.46,39.0]
[1749496432851,18.93801278,156.49,156.46,39.0]
[1749496433356,12.5477259,156.49,156.47,18.64964886]
[1749496433558,32.38936809,156.51,156.47,31.19737476]
[1749496433762,38.5477259,156.51,156.47,127.48835808]
[1749496435377,45.60166723,156.51,156.47,134.54229941]
[1749496435558,19.60166723,156.51,156.47,134.54229941]
[1749496435758,4.7548052,156.52,156.49,38.25131609]
[1749496435961,51.99024372,156.53,156.5,39.0]
[1749496436576,19.60166723,156.53,156.51,18.64964886]
[1749496436761,30.74496526,156.54,156.51,18.64964886]
[1749496436963,51.98987524,156.54,156.51,18.64964886]
[1749496437553,56.74496526,156.54,156.51,18.64964886]
[1749496437754,51.98987524,156.54,156.51,18.64964886]
[1749496438561,19.60166723,156.53,156.51,18.64964886]
[1749496439969,16.23063299,156.53,156.51,18.64964886]
[1749496441848,22.61918943,156.53,156.51,18.64964886]
[1749496442973,16.23063299,156.53,156.51,18.64964886]
[1749496443366,22.61926931,156.53,156.51,18.64964886]
[1749496444361,22.61926931,156.53,156.51,19.03334886]
[1749496445081,30.75690086,156.54,156.51,19.03334886]
[1749496445283,19.60166723,156.55,156.51,45.02435515]
[1749496445491,4.75743819,156.55,156.53,18.64964886]
[1749496445781,4.75743819,156.55,156.53,57.64964886]
[1749496447259,4.75743819,156.55,156.53,153.93817954]
[1749496447669,4.75743819,156.55,156.53,147.54964886]
[1749496447870,24.35935851,156.56,156.53,147.54964886]
[1749496449189,19.60166723,156.56,156.53,147.54964886]
[1749496449365,4.75711885,156.56,156.53,147.54964886]
[1749496449766,51.98862005,156.57,156.53,147.54964886]
[1749496449988,30.74603292,156.56,156.53,147.54964886]
[1749496450288,4.75699753,156.55,156.53,147.54964886]
[1749496450482,24.35866476,156.55,156.53,147.54964886]
[1749496450697,19.60166723,156.54,156.53,128.9]
[1749496452275,25.98981083,156.54,156.53,128.9]
[1749496452586,30.74647848,156.54,156.53,89.9]
[1749496452789,30.74647848,156.54,156.51,39.3637]
[1749496452964,19.60166723,156.52,156.51,39.3637]
[1749496454193,25.9906271,156.52,156.51,0.3837]
[1749496455483,19.60166723,156.52,156.51,0.3837]
[1749496456388,25.9906271,156.52,156.51,0.3837]
[1749496459177,30.74886311,156.52,156.51,0.3837]
[1749496459390,25.9906271,156.52,156.51,0.3837]
[1749496459580,30.74886311,156.52,156.51,0.3837]
[1749496459787,6.38895987,156.52,156.51,0.3837]
[1749496460093,30.74886311,156.52,156.51,0.3837]
[1749496460393,25.9906271,156.52,156.51,0.3837]
[1749496460586,30.74886311,156.52,156.51,0.3837]
[1749496460787,25.9906271,156.52,156.51,0.3837]
[1749496460989,30.74886311,156.52,156.51,0.3837]
[1749496469797,11.14719588,156.52,156.51,0.3837]
[1749496470189,30.74886311,156.52,156.51,0.3837]
[1749496470905,11.14719588,156.52,156.51,0.3837]
[1749496471110,30.74886311,156.52,156.51,0.3837]
[1749496474648,24.35990324,156.52,156.51,0.3837]
[1749496475914,30.74886311,156.52,156.51,0.3837]
[1749496477302,23.6925721,156.52,156.51,0.3837]
[1749496479434,30.75339402,156.52,156.51,0.3837]
[1749496482735,11.14719588,156.52,156.51,0.3837]
[1749496483029,30.75339402,156.52,156.51,0.3837]
[1749496495539,31.03771716,156.52,156.51,0.3837]
[1749496496441,31.05148702,156.52,156.51,0.3837]
[1749496499644,11.44528888,156.52,156.51,0.3837]
[1749496499820,31.05148702,156.52,156.51,0.3837]
[1749496501237,23.99338986,156.52,156.51,0.3837]
[1749496501943,23.70906672,156.52,156.51,0.3837]
[1749496505845,29.67407406,156.52,156.51,0.3837]
[1749496506044,23.71464156,156.52,156.51,0.3837]
[1749496507044,29.68661745,156.52,156.51,0.3837]
[1749496507937,29.97094059,156.52,156.51,0.3837]
[1749496508139,0.28432314,156.51,156.46,128.88]
[1749496508352,12.54810098,156.47,156.46,38.98]
[1749496508569,17.32568169,156.47,156.46,38.98]
[1749496509555,17.32568169,156.47,156.45,99.96]
[1749496509859,4.77758071,156.46,156.45,118.60964886]
[1749496511559,18.93914481,156.47,156.45,118.60964886]
[1749496512449,12.54810098,156.48,156.45,118.60964886]
[1749496512628,4.77088781,156.47,156.45,118.60964886]
[1749496512834,12.54810098,156.48,156.45,118.60964886]
[1749496513658,18.93884078,156.48,156.45,108.54964886]
[1749496514563,18.93838251,156.49,156.45,121.09774984]
[1749496514730,4.77017621,156.48,156.45,121.09774984]
[1749496514935,18.93838251,156.49,156.45,121.09774984]
[1749496515653,4.76944267,156.48,156.45,121.09774984]
[1749496515846,18.93838251,156.49,156.45,121.09774984]
[1749496517165,4.76939965,156.48,156.45,121.09774984]
[1749496517347,18.93838251,156.49,156.45,121.09774984]
[1749496517548,4.76949199,156.48,156.45,121.09774984]
[1749496517759,18.93838251,156.49,156.45,121.09774984]
[1749496518067,4.76905238,156.48,156.45,121.09774984]
[1749496518231,18.93838251,156.49,156.45,121.09774984]
[1749496518964,18.93838251,156.49,156.45,108.54964886]
[1749496519137,18.93838251,156.49,156.45,121.09774984]
[1749496519437,4.76939517,156.48,156.45,121.09774984]
[1749496519637,18.93838251,156.49,156.45,121.09774984]
[1749496519959,4.76961359,156.48,156.45,121.09774984]
[1749496520151,18.93838251,156.49,156.45,121.09774984]
[1749496520466,4.76929788,156.48,156.45,121.09774984]
[1749496520661,18.93838251,156.49,156.45,121.09774984]
[1749496520857,4.76946128,156.48,156.45,121.09774984]
[1749496521162,18.93838251,156.49,156.45,121.09774984]
[1749496521365,4.7696474,156.48,156.47,26.0]
[1749496522051,18.93838251,156.49,156.48,26.0]
[1749496522252,23.70797151,156.49,156.45,147.09774984]
[1749496522450,4.769589,156.48,156.45,147.09774984]
[1749496522651,18.93838251,156.49,156.45,147.09774984]
[1749496522958,4.76953652,156.48,156.45,147.09774984]
[1749496523143,18.93838251,156.49,156.45,147.09774984]